fUST/lending_fUST_20250709
["ID","MTS","AMOUNT","RATE_DAILY","PERIOD"]
[370493503,1752045061149,-535.3147191,0.00021141,4]
[370493505,1752045061158,-157.746236,0.000212,2]
[370493507,1752045061168,-151.0,0.000212,4]
[370493509,1752045061177,-535.3147191,0.00021348,5]
[370493511,1752045061186,-151.0,0.00021369,2]
[370493513,1752045061195,-151.0,0.00021369,2]
[370493515,1752045061204,-460.0,0.00021369,2]
[370493517,1752045061214,-460.0,0.00021369,2]
[370493519,1752045061223,-460.0,0.00021369,2]
[370493521,1752045061232,-460.0,0.00021369,2]
[370493523,1752045061241,-1214.49,0.00021369,2]
[370493525,1752045061250,-460.0,0.00021369,2]
[370493527,1752045061260,-460.0,0.00021369,2]
[370493529,1752045061271,-460.0,0.00021369,2]
[370493531,1752045061281,-2189.94,0.00021369,2]
[370493533,1752045061290,-465.73,0.00021369,2]
[370493535,1752045061299,-460.0,0.00021369,2]
[370493537,1752045061309,-464.47,0.00021369,2]
[370493540,1752045061318,-460.0,0.00021369,2]
[370493542,1752045061328,-460.0,0.00021369,2]
[370493544,1752045061337,-498.33,0.00021369,2]
[370493546,1752045061347,-164.24,0.00021369,2]
[370493547,1752045061356,-460.0,0.00021369,2]
[370493550,1752045061365,-460.0,0.00021369,2]
[370493552,1752045061375,-516.57,0.00021369,2]
[370493554,1752045061386,-460.0,0.00021369,2]
[370493556,1752045061396,-460.0,0.00021369,2]
[370493558,1752045061405,-383.24575433,0.00021369,2]
[370493560,1752045061414,-257.24,0.00021369,2]
[370493562,1752045061423,-460.0,0.00021369,2]
[370493564,1752045061433,-460.0,0.00021369,2]
[370493565,1752045061442,-709.72,0.00021369,2]
[370493567,1752045061451,-460.0,0.00021369,2]
[370493570,1752045061460,-460.0,0.00021369,2]
[370493571,1752045061469,-157.746236,0.00021458,2]
[370493573,1752045061479,-500.0,0.00021479,2]
[370493575,1752045061487,-151.0,0.00021555,2]
[370493577,1752045061497,-217.936345,0.00021555,2]
[370493580,1752045061507,-267.233877,0.00021555,2]
[370493581,1752045061516,-151.0,0.00021555,2]
[370493583,1752045061525,-151.0,0.00021555,2]
[370493586,1752045061535,-175.360871,0.00021555,2]
[370493588,1752045061545,-175.360871,0.00021555,2]
[370493590,1752045061554,-535.3147191,0.00021555,5]
[370493591,1752045061563,-460.0,0.00021643,2]
[370493594,1752045061573,-428.87,0.00021643,2]
[370493595,1752045061582,-403.86,0.00021643,2]
[370493598,1752045061592,-470.02337387,0.00021643,2]
[370493599,1752045061601,-1214.49,0.00021643,2]
[370493601,1752045061610,-460.0,0.00021643,2]
[370493603,1752045061619,-397.55,0.00021643,2]
[370493605,1752045061628,-2189.94,0.00021643,2]
[370493607,1752045061637,-465.73,0.00021643,2]
[370493609,1752045061646,-460.0,0.00021643,2]
[370493611,1752045061656,-460.0,0.00021643,2]
[370493614,1752045061666,-498.33,0.00021643,2]
[370493616,1752045061675,-460.0,0.00021643,2]
[370493617,1752045061685,-460.0,0.00021643,2]
[370493620,1752045061694,-516.57,0.00021643,2]
[370493622,1752045061704,-460.0,0.00021643,2]
[370493623,1752045061713,-511.5,0.00021643,2]
[370493625,1752045061722,-460.0,0.00021643,2]
[370493627,1752045061731,-709.72,0.00021643,2]
[370493630,1752045061740,-460.0,0.00021643,2]
[370493632,1752045061749,-184.46,0.00021643,2]
[370493634,1752045061759,-343.43660659,0.00021644,2]
[370493636,1752045061768,-502.92819425,0.00021644,2]
[370493638,1752045061779,-600.0,0.00021644,2]
[370493640,1752045061788,-157.746236,0.00021717,2]
[370493642,1752045061797,-535.3147191,0.00021762,5]
[370493644,1752045061806,-151.0,0.000218,3]
[370493646,1752045061815,-3264.44848119,0.00021869,2]
[370493648,1752045061824,-521.8185706,0.000219,2]
[370493650,1752045061834,-181.139617,0.00021917,2]
[370493652,1752045061843,-460.0,0.00021917,2]
[370493654,1752045061852,-1214.49,0.00021917,2]
[370493656,1752045061861,-12500.0,0.00021917,2]
[370493658,1752045061871,-460.0,0.00021917,2]
[370493660,1752045061880,-2189.94,0.00021917,2]
[370493662,1752045061890,-465.73,0.00021917,2]
[370493664,1752045061899,-402.6,0.00021917,2]
[370493666,1752045061909,-460.0,0.00021917,2]
[370493668,1752045061918,-498.33,0.00021917,2]
[370493670,1752045061927,-151.0,0.00021917,2]
[370493672,1752045061937,-460.0,0.00021917,2]
[370493674,1752045061946,-460.0,0.00021917,2]
[370493676,1752045061956,-516.57,0.00021917,2]
[370493678,1752045061965,-260.84,0.00021917,2]
[370493680,1752045061979,-460.0,0.00021917,2]
[370493682,1752045061988,-709.72,0.00021917,2]
[370493684,1752045061998,-581.27,0.00021917,2]
[370493686,1752045062007,-500.0,0.00021918,2]
[370493687,1752045062018,-500.0,0.00021918,2]
[370493690,1752045062027,-500.0,0.00021918,2]
[370493692,1752045062036,-500.0,0.00021918,2]
[370493694,1752045062048,-500.0,0.00021918,2]
[370493696,1752045062057,-500.0,0.00021918,2]
[370493698,1752045062066,-500.0,0.00021918,2]
[370493699,1752045062075,-500.0,0.00021918,2]
[370493701,1752045062084,-500.0,0.00021918,2]
[370493704,1752045062093,-500.0,0.00021918,2]
[370493706,1752045062102,-500.0,0.00021918,2]
[370493708,1752045062111,-500.0,0.00021918,2]
[370493710,1752045062120,-500.0,0.00021918,2]
[370493712,1752045062129,-500.0,0.00021918,2]
[370493713,1752045062139,-427.43769276,0.00021918,2]
[370493716,1752045062148,-535.3147191,0.00021969,6]
[370493717,1752045062158,-501.4536205,0.00021973,2]
[370493719,1752045062167,-502.95058795,0.00021973,2]
[370493721,1752045062175,-501.45291797,0.00021973,2]
[370493723,1752045062185,-56527.97,0.00022,7]
[370493725,1752045062194,-7179.38,0.00022,7]
[370493727,1752045062204,-151.0,0.00022,7]
[370493729,1752045062213,-151.0,0.00022,7]
[370493731,1752045062222,-107420.66,0.00022,2]
[370493733,1752045062232,-151.0,0.00022,7]
[370493735,1752045062241,-151.0,0.00022,7]
[370493738,1752045062251,-151.0,0.00022,7]
[370493739,1752045062260,-151.0,0.00022,7]
[370493742,1752045062271,-178.187632,0.00022,7]
[370493744,1752045062280,-151.0,0.00022,7]
[370493746,1752045062290,-178.187632,0.00022,7]
[370493747,1752045062299,-151.0,0.00022,7]
[370493750,1752045062309,-151.0,0.00022,7]
[370493751,1752045062318,-151.0,0.00022,7]
[370493754,1752045062327,-151.0,0.00022,7]
[370493755,1752045062336,-151.0,0.00022,7]
[370493757,1752045062346,-151.0,0.00022,7]
[370493760,1752045062355,-151.0,0.00022,7]
[370493762,1752045062365,-151.0,0.00022,7]
[370493764,1752045062374,-157.22961,0.00022,7]
[370493765,1752045062385,-176.819385,0.00022,7]
[370493767,1752045062395,-157.22961,0.00022,7]
[370493770,1752045062405,-151.0,0.00022,7]
[370493780,1752045062492,-198.86563,0.00022,7]
[370493782,1752045062502,-198.86563,0.00022,7]
[370493784,1752045062511,-151.0,0.00022,7]
[370493786,1752045062520,-151.0,0.00022,7]
[370493788,1752045062529,-175.360871,0.00022,7]
[370493790,1752045062538,-175.360871,0.00022,7]
[370493792,1752045062548,-151.0,0.00022,7]
[370493794,1752045062557,-151.0,0.00022,7]
[370493796,1752045062566,-535.3147191,0.00022176,6]
[370493798,1752045062575,-460.0,0.00022191,2]
[370493800,1752045062584,-1214.49,0.00022191,2]
[370493802,1752045062593,-604.28402919,0.00022191,2]
[370493804,1752045062603,-2189.94,0.00022191,2]
[370493806,1752045062612,-465.73,0.00022191,2]
[370493808,1752045062621,-460.0,0.00022191,2]
[370493810,1752045062631,-498.33,0.00022191,2]
[370493812,1752045062640,-201.03,0.00022191,2]
[370493814,1752045062650,-460.0,0.00022191,2]
[370493816,1752045062659,-516.57,0.00022191,2]
[370493818,1752045062668,-460.0,0.00022191,2]
[370493820,1752045062678,-709.72,0.00022191,2]
[370493822,1752045062688,-1200.0,0.00022192,2]
[370493824,1752045062697,-521.81857053,0.00022272,2]
[370493826,1752045062707,-151.0,0.000223,8]
[370493828,1752045062716,-150.0,0.00022318,2]
[370493830,1752045062725,-150.0,0.00022318,2]
[370493832,1752045062734,-150.0,0.00022318,2]
[370493834,1752045062743,-967.0,0.00022318,2]
[370493836,1752045062752,-646.0,0.00022318,2]
[370493837,1752045062761,-2153.0,0.00022318,2]
[370493839,1752045062771,-407.0,0.00022318,2]
[370493842,1752045062780,-408.797,0.00022318,2]
[370493844,1752045062790,-535.3147191,0.00022383,7]
[370493846,1752045062799,-1214.49,0.00022465,2]
[370493847,1752045062808,-2189.94,0.00022465,2]
[370493850,1752045062818,-465.73,0.00022465,2]
[370493852,1752045062827,-460.0,0.00022465,2]
[370493854,1752045062837,-498.33,0.00022465,2]
[370493856,1752045062846,-460.0,0.00022465,2]
[370493857,1752045062856,-516.57,0.00022465,2]
[370493860,1752045062865,-460.0,0.00022465,2]
[370493862,1752045062875,-709.72,0.00022465,2]
[370493864,1752045062885,-8551.33671167,0.00022512,2]
[370493866,1752045062895,-587.0,0.00022542,2]
[370493868,1752045062904,-535.3147191,0.0002259,7]
[370493870,1752045062914,-2099.99,0.000226,7]
[370493872,1752045062923,-340.41778,0.00022603,2]
[370493874,1752045062933,-521.81857053,0.00022644,2]
[370493876,1752045062943,-151.0,0.00022739,7]
[370493878,1752045062952,-157.22961,0.00022739,7]
[370493880,1752045062961,-157.22961,0.00022739,7]
[370493882,1752045062971,-198.86563,0.00022739,7]
[370493884,1752045062983,-198.86563,0.00022739,7]
[370493886,1752045062993,-1214.49,0.00022739,2]
[370493888,1752045063002,-2189.94,0.00022739,2]
[370493890,1752045063012,-465.73,0.00022739,2]
[370493892,1752045063024,-498.33,0.00022739,2]
[370493894,1752045063034,-460.0,0.00022739,2]
[370493896,1752045063043,-151.0,0.00022739,7]
[370493898,1752045063054,-460.0,0.00022739,2]
[370493900,1752045063064,-516.57,0.00022739,2]
[370493902,1752045063073,-460.0,0.00022739,2]
[370493904,1752045063082,-709.72,0.00022739,2]
[370493906,1752045063092,-1800.0,0.0002274,2]
[370493908,1752045063102,-207.4,0.00022768,2]
[370493910,1752045063111,-690.642,0.00022768,2]
[370493912,1752045063121,-300.0,0.00022768,2]
[370493914,1752045063131,-300.0,0.00022768,2]
[370493916,1752045063140,-300.0,0.00022768,2]
[370493918,1752045063150,-300.0,0.00022768,2]
[370493920,1752045063160,-300.0,0.00022768,2]
[370493922,1752045063170,-300.0,0.00022768,2]
[370493924,1752045063179,-300.0,0.00022768,2]
[370493926,1752045063188,-300.0,0.00022768,2]
[370493928,1752045063199,-300.0,0.00022768,2]
[370493930,1752045063209,-300.0,0.00022768,2]
[370493932,1752045063218,-300.0,0.00022768,2]
[370493934,1752045063228,-300.0,0.00022768,2]
[370493936,1752045063237,-300.0,0.00022768,2]
[370493938,1752045063246,-300.0,0.00022768,2]
[370493940,1752045063256,-151.0,0.00022768,2]
[370493942,1752045063265,-151.0,0.00022768,2]
[370493944,1752045063274,-535.3147191,0.00022797,7]
[370493946,1752045063283,-716.195754,0.00022823,2]
[370493948,1752045063292,-174.845258,0.0002286,4]
[370493950,1752045063301,-742.6949969,0.00022878,2]
[370493952,1752045063311,-151.0,0.000229,10]
[370493954,1752045063320,-165.91991477,0.00022904,2]
[370493956,1752045063330,-770.17471178,0.00022933,2]
[370493958,1752045063341,-798.67117612,0.00022988,2]
[370493960,1752045063350,-535.3147191,0.00023003,8]
[370493962,1752045063360,-1214.49,0.00023013,2]
[370493964,1752045063369,-2189.94,0.00023013,2]
[370493966,1752045063378,-465.73,0.00023013,2]
[370493968,1752045063388,-498.33,0.00023013,2]
[370493970,1752045063398,-460.0,0.00023013,2]
[370493972,1752045063407,-460.0,0.00023013,2]
[370493974,1752045063416,-516.57,0.00023013,2]
[370493976,1752045063425,-460.0,0.00023013,2]
[370493978,1752045063434,-709.72,0.00023013,2]
[370493980,1752045063443,-521.81857053,0.00023016,2]
[370493982,1752045063452,-151.0,0.00023028,7]
[370493984,1752045063461,-151.0,0.00023028,7]
[370493985,1752045063472,-3738.963,0.00023029,2]
[370493987,1752045063482,-828.22200964,0.00023043,2]
[370493989,1752045063491,-858.86622399,0.00023098,2]
[370493991,1752045063501,-200.00227428,0.00023153,2]
[370493993,1752045063511,-535.3147191,0.0002321,8]
[370493995,1752045063521,-1214.49,0.00023287,2]
[370493997,1752045063530,-2189.94,0.00023287,2]
[370493999,1752045063539,-465.73,0.00023287,2]
[370494001,1752045063549,-498.33,0.00023287,2]
[370494003,1752045063559,-460.0,0.00023287,2]
[370494005,1752045063568,-568.36,0.00023287,2]
[370494007,1752045063578,-516.57,0.00023287,2]
[370494009,1752045063587,-460.0,0.00023287,2]
[370494011,1752045063596,-709.72,0.00023287,2]
[370494013,1752045063606,-1811.57111913,0.00023288,2]
[370494015,1752045063615,-521.81857053,0.00023388,2]
[370494017,1752045063624,-151.0,0.000234,5]
[370494019,1752045063634,-535.3147191,0.00023417,9]
[370494021,1752045063649,-107420.66,0.000235,2]
[370494023,1752045063660,-151.0,0.000235,7]
[370494025,1752045063670,-151.0,0.000235,7]
[370494027,1752045063679,-151.0,0.000235,7]
[370494029,1752045063688,-175.360871,0.000235,7]
[370494031,1752045063698,-175.360871,0.000235,7]
[370494033,1752045063708,-151.0,0.000235,7]
[370494035,1752045063717,-1214.49,0.00023561,2]
[370494037,1752045063726,-2189.94,0.00023561,2]
[370494039,1752045063736,-465.73,0.00023561,2]
[370494041,1752045063745,-498.33,0.00023561,2]
[370494043,1752045063755,-460.0,0.00023561,2]
[370494045,1752045063764,-516.57,0.00023561,2]
[370494047,1752045063774,-460.0,0.00023561,2]
[370494049,1752045063784,-709.72,0.00023561,2]
[370494051,1752045063794,-7179.38,0.000236,7]
[370494053,1752045063803,-281.991641,0.000236,7]
[370494055,1752045063812,-151.0,0.000236,7]
[370494057,1752045063822,-535.3147191,0.00023624,9]
[370494059,1752045063832,-500.0,0.00023671,2]
[370494061,1752045063842,-760.07289997,0.00023739,2]
[370494063,1752045063851,-521.81857053,0.00023759,2]
[370494065,1752045063861,-535.3147191,0.00023831,10]
[370494067,1752045063870,-1214.49,0.00023835,2]
[370494069,1752045063879,-2189.94,0.00023835,2]
[370494071,1752045063888,-465.73,0.00023835,2]
[370494073,1752045063898,-498.33,0.00023835,2]
[370494075,1752045063907,-460.0,0.00023835,2]
[370494077,1752045063917,-516.57,0.00023835,2]
[370494079,1752045063926,-460.0,0.00023835,2]
[370494081,1752045063936,-709.72,0.00023835,2]
[370494083,1752045063946,-390.17391335,0.000239,2]
[370494085,1752045063955,-151.0,0.00024,7]
[370494087,1752045063965,-230.53906051,0.00024,7]
[370494089,1752045063979,-215.27775528,0.00024,7]
[370494091,1752045063989,-837.99933892,0.00024,7]
[370494093,1752045063998,-760.07289997,0.00024023,2]
[370494106,1752045064122,-535.3147191,0.00024038,10]
[370494109,1752045064136,-1214.49,0.00024109,2]
[370494111,1752045064146,-2189.94,0.00024109,2]
[370494113,1752045064156,-465.73,0.00024109,2]
[370494115,1752045064166,-498.33,0.00024109,2]
[370494117,1752045064175,-430.40909105,0.00024109,2]
[370494119,1752045064185,-516.57,0.00024109,2]
[370494121,1752045064194,-460.0,0.00024109,2]
[370494123,1752045064204,-709.72,0.00024109,2]
[370494125,1752045064213,-521.81857053,0.00024131,2]
[370494127,1752045064223,-215.0738,0.00024137,2]
[370494129,1752045064233,-2099.99,0.000242,7]
[370494131,1752045064242,-168.0,0.000242,2]
[370494133,1752045064252,-535.3147191,0.00024245,10]
[370494135,1752045064262,-168.0,0.00024277,2]
[370494137,1752045064271,-168.0,0.00024286,2]
[370494139,1752045064281,-760.07289997,0.00024309,2]
[370494141,1752045064291,-289.114991,0.00024383,7]
[370494143,1752045064301,-157.22961,0.00024383,7]
[370494145,1752045064310,-157.22961,0.00024383,7]
[370494147,1752045064319,-198.86563,0.00024383,7]
[370494149,1752045064328,-198.86563,0.00024383,7]
[370494151,1752045064338,-1214.49,0.00024383,2]
[370494153,1752045064347,-2189.94,0.00024383,2]
[370494155,1752045064357,-465.73,0.00024383,2]
[370494157,1752045064366,-498.33,0.00024383,2]
[370494159,1752045064376,-151.0,0.00024383,7]
[370494160,1752045064385,-516.57,0.00024383,2]
[370494162,1752045064394,-502.41,0.00024383,2]
[370494164,1752045064404,-709.72,0.00024383,2]
[370494166,1752045064414,-230.53906051,0.000244,7]
[370494168,1752045064424,-258.533965,0.00024401,4]
[370494170,1752045064434,-535.3147191,0.00024452,11]
[370494172,1752045064443,-151.0,0.00024455,7]
[370494174,1752045064452,-183.1484428,0.00024493,2]
[370494176,1752045064462,-159.4922776,0.00024493,2]
[370494178,1752045064471,-177.763542,0.00024493,2]
[370494180,1752045064481,-521.81857053,0.00024503,2]
[370494182,1752045064491,-168.0,0.00024508,2]
[370494184,1752045064500,-168.0,0.00024524,2]
[370494186,1752045064509,-168.0,0.00024534,2]
[370494188,1752045064519,-760.07289997,0.00024548,2]
[370494189,1752045064529,-168.0,0.00024553,2]
[370494190,1752045064538,-823.0,0.00024571,2]
[370494191,1752045064547,-200.0,0.0002459,11]
[370494192,1752045064556,-151.0,0.00024657,7]
[370494193,1752045064565,-151.0,0.00024657,7]
[370494194,1752045064575,-151.0,0.00024657,7]
[370494195,1752045064584,-151.0,0.00024657,7]
[370494196,1752045064593,-178.187632,0.00024657,7]
[370494197,1752045064602,-178.187632,0.00024657,7]
[370494198,1752045064611,-151.0,0.00024657,7]
[370494199,1752045064620,-151.0,0.00024657,7]
[370494200,1752045064629,-1214.49,0.00024657,2]
[370494201,1752045064639,-2189.94,0.00024657,2]
[370494202,1752045064648,-465.73,0.00024657,2]
[370494203,1752045064657,-498.33,0.00024657,2]
[370494204,1752045064667,-516.57,0.00024657,2]
[370494206,1752045064676,-709.72,0.00024657,2]
[370494207,1752045064686,-150.0,0.00024658,2]
[370494209,1752045064695,-380.0,0.00024658,2]
[370494211,1752045064704,-535.3147191,0.00024659,11]
[370494213,1752045064715,-1888.39386957,0.000247,2]
[370494215,1752045064725,-278.08290182,0.000247,2]
[370494217,1752045064735,-1111.21927566,0.000247,2]
[370494219,1752045064746,-151.0,0.000247,7]
[370494221,1752045064756,-473.98686127,0.000247,2]
[370494223,1752045064767,-800.0,0.00024748,2]
[370494225,1752045064777,-3264.44848119,0.00024765,2]
[370494227,1752045064787,-502.37419176,0.00024773,2]
[370494229,1752045064798,-452.68375414,0.00024796,2]
[370494231,1752045064808,-2000.0,0.000248,2]
[370494233,1752045064817,-2000.0,0.000248,2]
[370494235,1752045064827,-3323.94,0.000248,3]
[370494237,1752045064837,-151.0,0.000248,7]
[370494239,1752045064846,-151.0,0.000248,2]
[370494241,1752045064855,-151.0,0.000248,7]
[370494243,1752045064865,-151.0,0.000248,7]
[370494245,1752045064874,-151.0,0.000248,7]
[370494247,1752045064883,-151.0,0.000248,7]
[370494249,1752045064893,-178.187632,0.000248,7]
[370494251,1752045064902,-178.187632,0.000248,7]
[370494253,1752045064912,-151.0,0.000248,7]
[370494254,1752045064922,-151.0,0.000248,7]
[370494256,1752045064931,-151.0,0.000248,7]
[370494258,1752045064941,-151.0,0.000248,7]
[370494260,1752045064950,-151.0,0.000248,7]
[370494262,1752045064959,-157.22961,0.000248,7]
[370494264,1752045064969,-157.22961,0.000248,7]
[370494266,1752045064982,-151.0,0.000248,7]
[370494268,1752045064991,-198.86563,0.000248,7]
[370494270,1752045065001,-198.86563,0.000248,7]
[370494272,1752045065010,-230.53906051,0.000248,3]
[370494274,1752045065022,-12589.12013084,0.000248,3]
[370494276,1752045065031,-160.0,0.000248,3]
[370494278,1752045065040,-222.90520413,0.000248,2]
[370494280,1752045065050,-151.0,0.000248,7]
[370494281,1752045065059,-151.0,0.000248,7]
[370494283,1752045065068,-175.360871,0.000248,7]
[370494285,1752045065078,-175.360871,0.000248,7]
[370494287,1752045065087,-151.0,0.000248,7]
[370494289,1752045065096,-203230.64941,0.000248,2]
[370494292,1752045065107,-159.711564,0.000248,7]
[370494294,1752045065116,-215.27775528,0.000248,3]
[370494295,1752045065125,-160.0,0.000248,3]
[370494297,1752045065135,-837.99933892,0.000248,3]
[370494299,1752045065144,-800.0,0.00024849,2]
[370494302,1752045065154,-535.3147191,0.00024866,12]
[370494304,1752045065167,-151.0,0.00024874,7]
[370494306,1752045065177,-521.81857053,0.00024875,2]
[370494308,1752045065186,-151.22157252,0.00024877,2]
[370494310,1752045065196,-500.0,0.00024877,2]
[370494312,1752045065205,-151.0,0.00024877,2]
[370494314,1752045065215,-198.88861895,0.00024877,2]
[370494316,1752045065225,-151.0,0.00024877,2]
[370494318,1752045065234,-151.0,0.00024877,2]
[370494320,1752045065244,-151.0,0.00024877,2]
[370494322,1752045065253,-151.0,0.00024877,2]
[370494324,1752045065263,-244.26829097,0.00024877,2]
[370494326,1752045065272,-200.70857585,0.00024877,2]
[370494328,1752045065282,-151.0,0.00024877,2]
[370494330,1752045065291,-151.0,0.00024877,2]
[370494332,1752045065300,-151.0,0.00024877,2]
[370494334,1752045065309,-500.0,0.00024877,2]
[370494335,1752045065318,-800.0,0.00024882,2]
[370494337,1752045065328,-5484.75250569,0.000249,2]
[370494339,1752045065338,-20167.23585242,0.000249,2]
[370494341,1752045065347,-151.0,0.000249,7]
[370494343,1752045065356,-56527.97,0.000249,7]
[370494345,1752045065365,-151.0,0.000249,7]
[370494347,1752045065375,-151.0,0.000249,7]
[370494349,1752045065385,-151.0,0.000249,7]
[370494351,1752045065394,-151.0,0.000249,7]
[370494353,1752045065403,-151.0,0.000249,7]
[370494355,1752045065413,-151.0,0.000249,2]
[370494357,1752045065422,-151.0,0.000249,7]
[370494359,1752045065432,-107420.66,0.000249,2]
[370494361,1752045065442,-151.0,0.000249,7]
[370494363,1752045065451,-151.0,0.000249,7]
[370494365,1752045065460,-151.0,0.000249,7]
[370494367,1752045065470,-178.187632,0.000249,7]
[370494369,1752045065479,-178.187632,0.000249,7]
[370494371,1752045065489,-1697.49075802,0.000249,2]
[370494373,1752045065498,-151.0,0.000249,7]
[370494375,1752045065508,-151.0,0.000249,7]
[370494377,1752045065518,-151.0,0.000249,7]
[370494388,1752045065608,-151.0,0.000249,7]
[370494390,1752045065623,-151.0,0.000249,7]
[370494392,1752045065633,-151.0,0.000249,7]
[370494394,1752045065642,-157.22961,0.000249,7]
[370494396,1752045065651,-157.22961,0.000249,7]
[370494398,1752045065660,-157.22961,0.000249,7]
[370494400,1752045065669,-157.22961,0.000249,7]
[370494402,1752045065679,-151.0,0.000249,7]
[370494404,1752045065688,-151.0,0.000249,7]
[370494405,1752045065698,-198.86563,0.000249,7]
[370494407,1752045065707,-198.86563,0.000249,7]
[370494409,1752045065716,-198.86563,0.000249,7]
[370494411,1752045065726,-198.86563,0.000249,7]
[370494413,1752045065736,-151.0,0.000249,7]
[370494415,1752045065745,-151.0,0.000249,7]
[370494417,1752045065755,-300.051667,0.000249,7]
[370494419,1752045065765,-175.360871,0.000249,7]
[370494421,1752045065775,-175.360871,0.000249,7]
[370494423,1752045065784,-175.360871,0.000249,7]
[370494425,1752045065794,-175.360871,0.000249,7]
[370494427,1752045065803,-162124.28443294,0.000249,2]
[370494444,1752045065969,-755.8897517,0.000249,2]
[370494447,1752045065986,-5311.96469863,0.000249,2]
[370494449,1752045065997,-5048.58384178,0.000249,2]
[370494451,1752045066009,-603.26977313,0.000249,2]
[370494453,1752045066022,-4491.24765967,0.000249,2]
[370494455,1752045066033,-529.7289147,0.000249,2]
[370494458,1752045066044,-585.85964783,0.000249,2]
[370494461,1752045066070,-531.5,0.000249,2]
[370494502,1752045066479,-460.0,0.00019178,2]
[370494504,1752045066489,-132.73,0.00019178,2]
[370494506,1752045066500,-328.29147379,0.00019178,2]
[370494508,1752045066509,-460.0,0.00019178,2]
[370494510,1752045066520,-460.0,0.00019178,2]
[370494512,1752045066529,-460.0,0.00019178,2]
[370494514,1752045066539,-460.0,0.00019178,2]
[370494516,1752045066548,-460.0,0.00019178,2]
[370494518,1752045066559,-460.0,0.00019178,2]
[370494520,1752045066568,-460.0,0.00019452,2]
[370494522,1752045066577,-460.0,0.00019452,2]
[370494523,1752045066588,-1295.78627,0.00019452,2]
[370494525,1752045066597,-305.73283807,0.00019452,2]
[370494528,1752045066606,-460.0,0.00019452,2]
[370494529,1752045066615,-460.0,0.00019452,2]
[370494531,1752045066624,-413.41038531,0.00019452,2]
[370494556,1752045067002,-460.0,0.00019178,2]
[370494557,1752045067013,-460.0,0.00019178,2]
[370494558,1752045067024,-1231.21,0.00019178,2]
[370494559,1752045067033,-460.0,0.00019178,2]
[370494560,1752045067043,-460.0,0.00019178,2]
[370494561,1752045067052,-102.83961469,0.00019452,2]
[370494562,1752045067062,-460.0,0.00019452,2]
[370494563,1752045067072,-151.8105263,0.00019452,2]
[370494564,1752045067111,-308.1894737,0.00019452,2]
[370494565,1752045067121,-1231.21,0.00019452,2]
[370494566,1752045067131,-460.0,0.00019726,2]
[370494567,1752045067141,-460.0,0.00019726,2]
[370494568,1752045067151,-460.0,0.00019726,2]
[370494569,1752045067160,-460.0,0.00019726,2]
[370494570,1752045067170,-460.0,0.00019726,2]
[370494571,1752045067180,-460.0,0.00019726,2]
[370494572,1752045067190,-1231.21,0.00019726,2]